[Event "Polish Youth 1st League 2022"]
[Site "Lublin"]
[Date "2022.06.25"]
[Round "1.1"]
[White "Suder, Jakub"]
[Black "Madej, Marek"]
[Result "1-0"]
[ECO "E91"]
[WhiteElo "2306"]
[BlackElo "1978"]
[Annotator "TA"]
[PlyCount "81"]
[EventDate "2022.06.24"]
[EventType "team-tourn"]
[EventCountry "POL"]
[SourceTitle "playchess.com"]
[Source "ChessBase"]
[SourceQuality "1"]
[TimeControl "40/5400+30:1800+30"]

{[%evp 22,81,41,28,45,31,32,20,86,10,0,0,0,-17,-14,-16,0,0,97,104,92,102,93,86,108,103,154,155,166,148,414,275,345,205,257,256,260,221,235,246,223,238,207,216,213,179,193,0,229,214,426,426,418,422,1502,1398,1232,1148,29997,29998,29998,29999]} 1. c4 {[%emt 0:00:06]} Nf6 {[%emt 0:00:08]} 2. Nc3 {[%emt 0:00:03]} g6 {[%emt 0:00:05]} 3. e4 {[%emt 0:00:44]} d6 {[%emt 0:00:16]} 4. d4 {[%emt 0:00:39]} Bg7 {[%emt 0:00:06]} 5. Nf3 {[%emt 0:00:28]} O-O {[%emt 0:00:35]} 6. Be2 {[%emt 0:00:16]} Na6 {[%emt 0:01:15]} 7. O-O {[%emt 0:01:24]} e5 {[%emt 0:00:17]} 8. Be3 {[%emt 0:01:39]} Ng4 {[%emt 0:00:06]} 9. Bg5 {[%emt 0:00:07]} Qe8 {[%emt 0:00:03]} 10. h3 {[%emt 0:05:08]} h6 {[%emt 0:00:39]} 11. Bc1 {[%emt 0:01:45]} exd4 {is the legacy move (11...Nf6).} 12. Nxd4 {[%emt 0:01:30]} Nf6 {[%emt 0:00:14][%cal Bg4f6,Bf6d7,Bd7e5][%mdl 32] E94: King's Indian: Classical: 6 Be2 e5 7 0-0: Various Black 7th moves.} 13. Bf3 {[%emt 0:04:15]} Nc5 {[%emt 0:05:59][%cal Rc5e4]} 14. Re1 {[%emt 0:04:49] [#]} Be6 $146 {[%emt 0:07:32] [#]} (14... Qd8 $11) ({Predecessor:} 14... Nfd7 15. Be3 Nb6 16. b3 a5 17. Rc1 Bd7 18. Ndb5 Bxb5 19. Nxb5 Qe7 20. Qd2 Rfd8 21. g3 Kh7 {½-½ (21) Chojnacki,K (2381)-Niekras,D (2289) Poznan 2021}) 15. e5 {[%emt 0:06:44]} (15. Nf5 $1 $16) 15... dxe5 $11 {[%emt 0:10:52]} 16. Rxe5 {[%emt 0:03:48]} Nfd7 {[%emt 0:06:08]} 17. Re1 {[%emt 0:00:54] aiming for b4.} Ne5 {[%emt 0:03:39] Strongly threatening ...Rd8.} 18. Nxe6 {[%emt 0:03:15]} Nxe6 {[%emt 0:01:38]} 19. Bd5 {[%emt 0:06:23][%cal Oc1h6]} Rd8 {[%emt 0:06:00] [#]} (19... g5 $11 {remains equal.}) 20. Bxh6 $1 $16 {[%emt 0:06:23]} Bxh6 {[%emt 0:14:13]} 21. Rxe5 {[%emt 0:00:22]} Bg7 {[%emt 0:00:02]} 22. Re1 {[%emt 0:05:46] White is more active.} Bxc3 {[%emt 0:10:41]} 23. bxc3 {[%emt 0:00:10]} b6 {[%emt 0:04:37]} (23... c6 $142) 24. Qg4 {[%emt 0:01:00][%cal Rd5e6]} Rd6 {[%emt 0:00:38]} 25. Rad1 {[%emt 0:00:56] And now f4 would win.} f5 $2 {[%emt 0:03:36][%mdl 8192]} (25... Qe7 $16 26. c5 bxc5) 26. Qg3 {[%emt 0:01:32]} Rf6 {[%emt 0:01:45]} 27. Re2 {[%emt 0:01:33]} (27. c5 $142 bxc5 28. Bc4 Rxd1 29. Rxd1) 27... Kg7 {[%emt 0:01:30] [#]} 28. Rde1 $1 {[%emt 0:00:40]} Qd7 {[%emt 0:01:28]} 29. Bxe6 {[%emt 0:01:12]} Rfxe6 {[%emt 0:00:02]} 30. Rxe6 {[%emt 0:00:11]} Rxe6 {[%emt 0:00:04]} 31. Rxe6 {[%emt 0:00:08]} Qxe6 {[%emt 0:00:02]} 32. Qxc7+ $18 {[%emt 0:00:07][%mdl 4096] Endgame KQ-KQ} Kh6 {[%emt 0:02:24]} 33. Qf4+ {[%emt 0:02:08]} Kh7 {[%emt 0:00:05]} 34. Qc7+ {[%emt 0:02:00]} Kh6 {[%emt 0:00:03]} 35. Kh2 {[%emt 0:06:30]} ({Don't take} 35. Qxa7 Qe1+ 36. Kh2 Qxf2) 35... Qe4 $2 {[%emt 0:02:00]} (35... Qe2 {was necessary.} 36. Qf4+ (36. Qxa7 Qxf2 37. Qb8 Kh7 $18) 36... Kg7 37. Qd4+ Kf7) 36. c5 {[%emt 0:02:10]} bxc5 {[%emt 0:01:31]} 37. Qxc5 {[%emt 0:00:17] Qe3+ is the strong threat.} Qc2 {[%emt 0:01:23]} (37... Qb7 $142 38. c4 Qb8+ 39. g3 Qb7) 38. Qxa7 {[%emt 0:00:59] Hoping for a4.} f4 {[%emt 0:01:25]} 39. Qd4 {[%emt 0:00:17]} Qf5 {[%emt 0:00:13]} 40. Qh8+ {[%emt 0:00:00]} Kg5 {[%emt 0:00:00]} 41. h4+ {[%emt 0:00:26] Weighted Error Value: White=0.30/Black=0.76} 1-0

[Event "Polish Youth 1st League 2022"]
[Site "Lublin"]
[Date "2022.06.25"]
[Round "1.2"]
[White "Nowak, Filip"]
[Black "Dziewonski, Dariusz"]
[Result "0-1"]
[ECO "C78"]
[WhiteElo "1819"]
[BlackElo "1976"]
[Annotator "NA RC"]
[PlyCount "60"]
[EventDate "2022.06.24"]
[EventType "team-tourn"]
[EventCountry "POL"]
[SourceTitle "playchess.com"]
[Source "ChessBase"]
[SourceQuality "1"]
[TimeControl "40/5400+30:1800+30"]

1. e4 {[%emt 0:00:04]} e5 {[%emt 0:00:04]} 2. Nf3 {[%emt 0:00:15]} Nc6 {[%emt 0:00:05]} 3. Bb5 {[%emt 0:00:27]} a6 {[%emt 0:00:06]} 4. Ba4 {[%emt 0:00:08]} Nf6 {[%emt 0:00:10]} 5. O-O {[%emt 0:00:05]} b5 {[%emt 0:02:56]} 6. Bb3 {[%emt 0:00:07]} Bc5 {[%emt 0:00:03] is cutting edge theory.} 7. Re1 {[%emt 0:13:20]} d6 {[%emt 0:06:04]} 8. h3 {[%emt 0:01:14]} Na5 {[%emt 0:09:19]} 9. d4 {[%emt 0:10:14] [#]} exd4 $146 {[%emt 0:13:38]} ({Predecessor:} 9... Nxb3 10. axb3 exd4 11. Bg5 O-O 12. Nxd4 h6 13. Bh4 g5 14. Bg3 Re8 15. Nc6 Qd7 {½-½ (50) Mittermayr,G (2071)-Froewis,A (2074) Austria 2020}) 10. Nxd4 {[%emt 0:08:35]} Bxd4 {[%emt 0:07:55]} 11. Bd5 {[%emt 0:04:22]} c6 {[%emt 0:07:29]} 12. Qxd4 {[%emt 0:00:31]} cxd5 {[%emt 0:00:54]} 13. exd5+ {[%emt 0:00:19]} Kf8 {[%emt 0:00:29]} 14. Bg5 {[%emt 0:01:20]} h6 {[%emt 0:08:23]} 15. Bh4 {[%emt 0:00:13]} Bf5 {[%emt 0:05:06]} 16. Nd2 {[%emt 0:01:15]} Rc8 {[%emt 0:02:45]} 17. Re3 {[%emt 0:06:16]} Nc4 {[%emt 0:10:52]} 18. Rf3 {[%emt 0:09:37]} Nxd2 {[%emt 0:00:26]} 19. Rxf5 {[%emt 0:07:04]} Nde4 {[%emt 0:00:14]} 20. Re1 {[%emt 0:00:17]} Qd7 $19 {[%emt 0:06:18]} 21. Rf3 {[%emt 0:07:08]} Rc4 {[%emt 0:00:53]} 22. Qb6 {[%emt 0:00:53]} g5 {[%emt 0:01:43]} 23. Bg3 {[%emt 0:00:29]} Kg7 {[%emt 0:01:12]} 24. h4 {[%emt 0:04:47]} Re8 {[%emt 0:01:55]} 25. Rd1 {[%emt 0:00:45]} Rxc2 {[%emt 0:04:07]} 26. hxg5 {[%emt 0:00:37]} hxg5 {[%emt 0:00:08]} 27. Qxa6 {[%emt 0:00:19]} g4 {[%emt 0:02:53]} 28. Re3 {[%emt 0:02:09]} Nxg3 {[%emt 0:00:18]} 29. Rxg3 {[%emt 0:00:24]} Qf5 {[%emt 0:01:00]} 30. Rf1 {[%emt 0:00:28]} Ree2 {[%emt 0:01:25]} 0-1

[Event "Polish Youth 1st League 2022"]
[Site "Lublin"]
[Date "2022.06.25"]
[Round "1.3"]
[White "Maj, Samuel"]
[Black "Grot, Blazej"]
[Result "1-0"]
[ECO "E06"]
[WhiteElo "1906"]
[BlackElo "1819"]
[Annotator "NA RC"]
[PlyCount "117"]
[EventDate "2022.06.24"]
[EventType "team-tourn"]
[EventCountry "POL"]
[SourceTitle "playchess.com"]
[Source "ChessBase"]
[SourceQuality "1"]
[TimeControl "40/5400+30:1800+30"]

1. d4 {[%emt 0:00:01]} Nf6 {[%emt 0:00:10]} 2. c4 {[%emt 0:00:02]} e6 {[%emt 0:00:07]} 3. Nf3 {[%emt 0:00:03]} d5 {[%emt 0:00:06]} 4. g3 {[%emt 0:00:05]} Be7 {[%emt 0:00:03]} 5. Bg2 {[%emt 0:00:08]} O-O {[%emt 0:00:05]} 6. O-O {[%emt 0:00:08]} c6 {[%emt 0:00:03]} 7. Qc2 {[%emt 0:00:10]} b6 {[%emt 0:00:05]} 8. Nbd2 {[%emt 0:00:07]} Bb7 {[%emt 0:00:05]} 9. e4 {[%emt 0:00:41]} Na6 {[%emt 0:00:04]} 10. e5 {[%emt 0:02:59]} Nd7 {[%emt 0:00:27]} 11. cxd5 {[%emt 0:04:54]} Nb4 {[%emt 0:03:49]} 12. Qb3 {[%emt 0:04:25]} cxd5 {[%emt 0:00:12]} 13. a3 {[%emt 0:03:10]} Nc6 {[%emt 0:00:16]} 14. Re1 {[%emt 0:03:53]} Rc8 {[%emt 0:10:57]} 15. Nf1 {[%emt 0:09:13]} Ba6 {[%emt 0:09:17]} 16. Bd2 {[%emt 0:05:02]} Na5 {[%emt 0:12:55]} 17. Qa4 {[%emt 0:08:19]} Bb7 {[%emt 0:23:02]} 18. Bxa5 {[%emt 0:02:49]} bxa5 {[%emt 0:00:52]} 19. Rac1 {[%emt 0:05:13]} Nb6 {[%emt 0:12:58]} 20. Qxa5 {[%emt 0:02:53]} Nc4 {[%emt 0:03:31]} 21. Qxd8 {[%emt 0:02:22]} Rfxd8 {[%emt 0:00:06]} 22. Ne3 {[%emt 0:13:20]} Ba8 {[%emt 0:03:09]} (22... Nxb2 $11 23. Rb1 Bxa3) 23. Rc2 {[%emt 0:04:59]} Rb8 {[%emt 0:04:44]} 24. Ree2 {[%emt 0:02:38]} Bb7 {[%emt 0:02:32]} 25. Nd2 {[%emt 0:02:26]} Nxe5 {[%emt 0:06:39]} 26. Nxd5 {[%emt 0:08:36]} Nf3+ {[%emt 0:00:16]} 27. Nxf3 {[%emt 0:01:50]} Bxd5 {[%emt 0:00:09]} 28. Ne5 {[%emt 0:01:01]} Bf6 {[%emt 0:00:32]} 29. Rc7 {[%emt 0:02:47]} Bxg2 {[%emt 0:02:08]} 30. Kxg2 {[%emt 0:00:11]} Rbc8 {[%emt 0:00:27]} 31. Rec2 {[%emt 0:02:24]} Rxc7 {[%emt 0:01:09]} 32. Rxc7 {[%emt 0:00:03]} h6 {[%emt 0:01:29]} 33. Nc6 {[%emt 0:01:40]} Rd6 {[%emt 0:00:27]} 34. b4 {[%emt 0:01:50]} a6 {[%emt 0:00:17]} 35. a4 {[%emt 0:04:36]} Bxd4 {[%emt 0:00:26]} 36. a5 {[%emt 0:00:39]} Bf6 {[%emt 0:02:33]} 37. b5 {[%emt 0:00:58]} axb5 {[%emt 0:00:23]} 38. a6 {[%emt 0:00:13]} Bd4 {[%emt 0:00:05]} 39. Nxd4 {[%emt 0:00:27]} Rxa6 {[%emt 0:00:04]} 40. Nxb5 {[%emt 0:00:00]} Rb6 {[%emt 0:00:00]} 41. Nd4 {[%emt 0:01:45]} g5 {[%emt 0:02:00]} 42. Nf3 {[%emt 0:00:58]} Rb5 {[%emt 0:00:08]} 43. Nd2 {[%emt 0:01:14]} Kg7 {[%emt 0:01:02]} 44. Ne4 {[%emt 0:00:26]} Rd5 {[%emt 0:00:19]} 45. Kf3 {[%emt 0:02:52]} Kg6 {[%emt 0:00:12]} 46. Ke3 {[%emt 0:01:41]} h5 {[%emt 0:02:41]} 47. Rc8 {[%emt 0:00:59]} f5 {[%emt 0:01:17]} 48. Nc5 {[%emt 0:03:29]} Re5+ {[%emt 0:01:42]} 49. Kf3 {[%emt 0:02:02]} Re1 {[%emt 0:01:03]} 50. Rg8+ {[%emt 0:04:25]} Kh6 {[%emt 0:03:55]} 51. Nd7 {[%emt 0:02:41]} e5 {[%emt 0:01:37]} 52. h4 {[%emt 0:04:35]} e4+ {[%emt 0:02:13]} 53. Kg2 {[%emt 0:00:15]} gxh4 {[%emt 0:00:03]} 54. gxh4 {[%emt 0:03:04]} Rd1 {[%emt 0:01:58]} 55. Ne5 {[%emt 0:06:10]} f4 {[%emt 0:03:19]} 56. Rh8+ {[%emt 0:00:56]} Kg7 {[%emt 0:01:35]} 57. Rxh5 $18 {[%emt 0:00:18]} f3+ {[%emt 0:06:22]} 58. Kg3 {[%emt 0:00:33]} Re1 {[%emt 0:00:29]} 59. Ng4 {[%emt 0:01:11]} 1-0

[Event "Polish Youth 1st League 2022"]
[Site "Lublin"]
[Date "2022.06.25"]
[Round "1.4"]
[White "Rozanski, Mateusz"]
[Black "Jamrozik, Maciej"]
[Result "1-0"]
[ECO "B40"]
[WhiteElo "1720"]
[BlackElo "1251"]
[Annotator "NA RC"]
[PlyCount "79"]
[EventDate "2022.06.24"]
[EventType "team-tourn"]
[EventCountry "POL"]
[SourceTitle "playchess.com"]
[Source "ChessBase"]
[SourceQuality "1"]
[TimeControl "40/5400+30:1800+30"]

1. e4 {[%emt 0:00:02]} c5 {[%emt 0:00:04]} 2. Nf3 {[%emt 0:00:07]} e6 {[%emt 0:00:06]} 3. d4 {[%emt 0:00:21]} cxd4 {[%emt 0:00:05]} 4. Nxd4 {[%emt 0:00:29]} Nf6 {[%emt 0:00:06]} 5. Nc3 {[%emt 0:00:09]} Nc6 {[%emt 0:00:07]} 6. Ndb5 {[%emt 0:00:31]} d6 {[%emt 0:00:08]} 7. Bf4 {[%emt 0:00:21]} e5 {[%emt 0:00:09]} 8. Bg5 {[%emt 0:00:20]} a6 {[%emt 0:00:06]} 9. Bxf6 {[%emt 0:00:37]} gxf6 {[%emt 0:00:07]} 10. Na3 {[%emt 0:00:10]} b5 {[%emt 0:00:10]} 11. Nd5 {[%emt 0:00:41]} Bg7 {[%emt 0:02:58]} 12. c4 {[%emt 0:02:04]} b4 {[%emt 0:03:25]} 13. Nc2 {[%emt 0:01:44]} Rb8 {[%emt 0:06:21]} 14. Qf3 {[%emt 0:07:58]} O-O {[%emt 0:04:47]} 15. Be2 {[%emt 0:02:37]} Be6 {[%emt 0:04:03]} 16. g4 {[%emt 0:01:26]} Bxd5 {[%emt 0:01:32]} 17. exd5 {[%emt 0:00:07]} Ne7 {[%emt 0:00:24]} 18. Bd3 {[%emt 0:00:54]} Ng6 {[%emt 0:01:14]} 19. Qe4 {[%emt 0:00:10]} b3 {[%emt 0:02:09]} 20. axb3 {[%emt 0:00:42]} Rxb3 {[%emt 0:04:06]} 21. h4 {[%emt 0:00:22]} Re8 {[%emt 0:01:24]} 22. h5 {[%emt 0:00:40]} Nf4 {[%emt 0:00:10]} 23. Qxh7+ {[%emt 0:00:18]} Kf8 {[%emt 0:00:08]} 24. Be4 {[%emt 0:00:15]} f5 {[%emt 0:11:45]} 25. Qxf5 {[%emt 0:01:19]} Nh3 {[%emt 0:03:47]} 26. Rxa6 {[%emt 0:02:07]} Bh6 {[%emt 0:04:39]} 27. Na1 {[%emt 0:01:50]} Rxb2 {[%emt 0:02:33]} 28. Rxh3 {[%emt 0:00:07]} Qb8 {[%emt 0:00:40]} 29. Kf1 {[%emt 0:00:50]} Qb4 {[%emt 0:01:35]} 30. Ra7 {[%emt 0:01:32]} Qxc4+ {[%emt 0:00:57]} 31. Kg2 {[%emt 0:00:05]} Re7 {[%emt 0:00:32]} 32. Rxe7 {[%emt 0:00:08]} Kxe7 {[%emt 0:00:04]} 33. g5 {[%emt 0:00:09]} Bxg5 {[%emt 0:01:28]} 34. Qxg5+ {[%emt 0:00:06]} Ke8 {[%emt 0:00:17]} 35. Qf5 {[%emt 0:00:45]} Re2 {[%emt 0:01:04]} 36. Bd3 {[%emt 0:00:59]} Rxf2+ {[%emt 0:00:45]} 37. Qxf2 {[%emt 0:00:22]} Qg4+ {[%emt 0:00:09]} 38. Rg3 {[%emt 0:00:06]} Qxh5 {[%emt 0:00:09]} 39. Qf6 {[%emt 0:00:12]} Kf8 {[%emt 0:00:22]} 40. Qd8# 1-0

[Event "Polish Youth 1st League 2022"]
[Site "Lublin"]
[Date "2022.06.25"]
[Round "1.5"]
[White "Uliasz, Katarzyna"]
[Black "Krzyzosiak, Marta"]
[Result "1/2-1/2"]
[ECO "A05"]
[WhiteElo "1526"]
[BlackElo "1666"]
[Annotator "NA RC"]
[PlyCount "61"]
[EventDate "2022.06.24"]
[EventType "team-tourn"]
[EventCountry "POL"]
[SourceTitle "playchess.com"]
[Source "ChessBase"]
[SourceQuality "1"]
[TimeControl "40/5400+30:1800+30"]

1. Nf3 {[%emt 0:00:11]} Nf6 {[%emt 0:00:10]} 2. g3 {[%emt 0:00:06]} g6 {[%emt 0:00:06]} 3. Bg2 {[%emt 0:00:04]} Bg7 {[%emt 0:00:10]} 4. O-O {[%emt 0:00:11]} O-O {[%emt 0:00:10]} 5. d3 {[%emt 0:00:16]} d6 {[%emt 0:00:18]} 6. e4 {[%emt 0:00:06]} e5 {[%emt 0:00:46]} 7. Nc3 {[%emt 0:02:07]} c6 {[%emt 0:02:14]} 8. h3 {[%emt 0:05:25]} Nbd7 {[%emt 0:03:29]} 9. Be3 {[%emt 0:16:50]} Re8 {[%emt 0:09:10]} 10. Nh2 {[%emt 0:08:58]} Nc5 {[%emt 0:32:24]} 11. f4 {[%emt 0:03:24]} exf4 {[%emt 0:09:33]} 12. gxf4 {[%emt 0:01:14]} Qe7 {[%emt 0:02:07]} 13. Qf3 {[%emt 0:15:29]} d5 {[%emt 0:13:05]} 14. e5 {[%emt 0:01:07]} Nh5 {[%emt 0:02:42]} 15. Rae1 {[%emt 0:01:21]} Bf5 {[%emt 0:02:13]} 16. Ng4 {[%emt 0:04:30]} Ne6 {[%emt 0:03:10]} 17. Ne2 {[%emt 0:03:42]} Qb4 {[%emt 0:04:34]} 18. b3 {[%emt 0:06:52]} f6 {[%emt 0:07:17]} 19. exf6 {[%emt 0:02:42]} Nxf6 {[%emt 0:00:10]} 20. Ne5 {[%emt 0:01:17]} Nh5 {[%emt 0:01:41]} 21. c3 {[%emt 0:04:13]} Qd6 {[%emt 0:00:48]} 22. d4 {[%emt 0:02:43]} Rf8 {[%emt 0:01:28]} 23. Ng3 {[%emt 0:01:05]} Nxg3 {[%emt 0:00:25]} 24. Qxg3 {[%emt 0:00:02]} Rae8 {[%emt 0:00:47]} 25. h4 {[%emt 0:00:56]} Nd8 {[%emt 0:00:33]} 26. Bh3 {[%emt 0:04:42]} Qe6 {[%emt 0:01:17]} 27. Kh2 {[%emt 0:02:12]} Bxh3 {[%emt 0:00:35]} 28. Qxh3 {[%emt 0:00:05]} Qxh3+ {[%emt 0:00:08]} 29. Kxh3 {[%emt 0:00:01]} Rf5 {[%emt 0:00:19]} 30. Rg1 {[%emt 0:01:14]} Nf7 {[%emt 0:00:42]} 31. Bd2 {[%emt 0:03:42]} 1/2-1/2

[Event "Polish Youth 1st League 2022"]
[Site "Lublin"]
[Date "2022.06.25"]
[Round "1.6"]
[White "Wieczorek, Maja"]
[Black "Tokarz, Gabriela"]
[Result "0-1"]
[ECO "B77"]
[WhiteElo "1316"]
[BlackElo "1469"]
[Annotator "NA RC"]
[PlyCount "86"]
[EventDate "2022.06.24"]
[EventType "team-tourn"]
[EventCountry "POL"]
[SourceTitle "playchess.com"]
[Source "ChessBase"]
[SourceQuality "1"]
[TimeControl "40/5400+30:1800+30"]

1. e4 {[%emt 0:00:03]} c5 {[%emt 0:00:08]} 2. Nf3 {[%emt 0:00:07]} d6 {[%emt 0:00:06]} 3. d4 {[%emt 0:00:06]} cxd4 {[%emt 0:00:07]} 4. Nxd4 {[%emt 0:00:05]} Nf6 {[%emt 0:00:10]} 5. Nc3 {[%emt 0:00:08]} g6 {[%emt 0:00:13]} 6. Be3 {[%emt 0:00:15]} Bg7 {[%emt 0:00:17]} 7. f3 {[%emt 0:00:11]} O-O {[%emt 0:00:14]} 8. Qd2 {[%emt 0:00:17]} Nc6 {[%emt 0:00:10]} 9. Bc4 {[%emt 0:00:39]} Bd7 {[%emt 0:00:36]} 10. Bb3 {[%emt 0:00:17]} Na5 {[%emt 0:01:47]} 11. O-O-O {[%emt 0:02:45]} Nxb3+ {[%emt 0:02:54]} 12. axb3 {[%emt 0:01:31]} a5 {[%emt 0:07:57]} 13. Bh6 {[%emt 0:16:08]} a4 {[%emt 0:01:41]} 14. Bxg7 {[%emt 0:01:35]} Kxg7 {[%emt 0:00:06]} 15. h4 {[%emt 0:20:28]} e5 {[%emt 0:17:36]} 16. Ndb5 {[%emt 0:07:29]} axb3 {[%emt 0:05:16]} 17. cxb3 {[%emt 0:02:47]} Bxb5 {[%emt 0:04:16]} 18. Nxb5 {[%emt 0:00:45]} Qb6 {[%emt 0:03:24]} 19. Nc3 {[%emt 0:15:52]} Qxb3 {[%emt 0:00:54]} 20. Qc2 {[%emt 0:00:32]} Qb6 {[%emt 0:06:02]} 21. Qd2 {[%emt 0:01:48]} Rfc8 {[%emt 0:06:11]} 22. g4 {[%emt 0:09:43]} Ra5 {[%emt 0:04:01]} 23. h5 {[%emt 0:03:55]} Rxc3+ {[%emt 0:00:38]} 24. Kb1 {[%emt 0:05:11]} Rca3 {[%emt 0:03:21]} 25. hxg6 {[%emt 0:01:44]} Ra1+ {[%emt 0:00:53]} 26. Kc2 {[%emt 0:00:10]} Qc5+ {[%emt 0:00:32]} 27. Kd3 {[%emt 0:04:19]} Qd4+ {[%emt 0:00:09]} 28. Ke2 {[%emt 0:00:20]} Qxd2+ {[%emt 0:00:10]} 29. Kxd2 {[%emt 0:00:11]} Rxd1+ {[%emt 0:00:04]} 30. Rxd1 {[%emt 0:00:12]} hxg6 {[%emt 0:00:10]} 31. Kc3 {[%emt 0:00:24]} Rc5+ {[%emt 0:00:11]} 32. Kb3 {[%emt 0:00:15]} Rc6 {[%emt 0:00:05]} 33. Ra1 {[%emt 0:00:20]} Nd7 {[%emt 0:00:07]} 34. Rd1 {[%emt 0:01:03]} Nc5+ {[%emt 0:00:05]} 35. Ka2 {[%emt 0:00:19]} Ra6+ {[%emt 0:00:28]} 36. Kb1 {[%emt 0:00:11]} Nb3 {[%emt 0:00:12]} 37. Kc2 {[%emt 0:00:24]} Nd4+ {[%emt 0:00:12]} 38. Kb1 {[%emt 0:00:40]} Nxf3 {[%emt 0:00:05]} 39. Rd3 {[%emt 0:00:24]} Nd4 {[%emt 0:00:06]} 40. Rd1 {[%emt 0:00:00]} b5 {[%emt 0:00:00]} 41. Rd3 {[%emt 0:01:26]} b4 {[%emt 0:00:10]} 42. Kc1 {[%emt 0:00:16]} Ra1+ {[%emt 0:00:07]} 43. Kd2 {[%emt 0:00:06]} Rb1 {[%emt 0:00:11]} 0-1

[Event "Polish Youth 1st League 2022"]
[Site "Lublin"]
[Date "2022.06.25"]
[Round "1.7"]
[White "Kania, Dominik"]
[Black "Luczak, Filip"]
[Result "0-1"]
[ECO "B01"]
[WhiteElo "1872"]
[BlackElo "2311"]
[Annotator "TA"]
[PlyCount "100"]
[EventDate "2022.06.24"]
[EventType "team-tourn"]
[EventCountry "POL"]
[SourceTitle "playchess.com"]
[Source "ChessBase"]
[SourceQuality "1"]
[TimeControl "40/5400+30:1800+30"]

{[%evp 9,100,32,83,35,82,53,67,2,13,5,12,9,3,0,0,0,0,-8,-6,0,50,33,43,31,18,5,17,11,54,0,0,0,0,-2,0,-5,-3,-15,-7,-32,-8,-13,-13,-13,-13,-12,-12,-19,-15,-33,-22,-40,-8,-8,0,0,0,0,0,0,0,-8,0,-8,-8,-8,-8,-29969,-29970,-29970,-29971,-29972,-29969,-29972,-29974,-29974,-29975,-29975,-29976,-29977,-29978,-29978,-29979,-29979,-29980,-29980,-29981,-29983,-29982,-29982,-29983,-29983,-29984]} 1. e4 {[%emt 0:00:06]} d5 {[%emt 0:00:10]} 2. Nc3 {[%emt 0:02:27]} dxe4 {[%emt 0:06:53]} 3. Nxe4 {[%emt 0:00:35]} Nc6 {[%emt 0:02:37]} 4. Nf3 {[%emt 0:03:06]} e5 {[%emt 0:03:17]} 5. Bb5 {[%emt 0:09:54]} Bd7 {[%emt 0:03:48]} ({Better is} 5... f5 $14 6. Nc3 e4) 6. d4 {[%emt 0:12:55] [#] A00: Irregular Openings.} ({White should try} 6. O-O $16) 6... f5 $146 {[%emt 0:21:47]} (6... Nxd4 $14 {deserves consideration.} 7. Nxd4 exd4) ({Predecessor:} 6... exd4 7. Nxd4 Nxd4 8. Bxd7+ Qxd7 9. Nc5 Qe7+ 10. Be3 Qe5 11. Qxd4 Qxd4 12. Bxd4 Bxc5 13. Bxc5 {1-0 (46) Druyen,D (764)-Kugathasan,S (966) Duesseldorf 2008}) 7. Nc3 {[%emt 0:05:38]} e4 {[%emt 0:06:56]} 8. Bxc6 {[%emt 0:01:53]} (8. Ng5 $14) 8... Bxc6 $11 {[%emt 0:02:09]} 9. Ne5 {[%emt 0:00:24]} Nf6 {[%emt 0:02:21] Prevents d5.} 10. Nxc6 {[%emt 0:05:43]} bxc6 {[%emt 0:00:04]} 11. O-O {[%emt 0:02:03]} Bb4 {[%emt 0:06:01]} 12. f3 {[%emt 0:09:09]} O-O {[%emt 0:01:29]} 13. Bg5 {[%emt 0:02:27]} Bxc3 {[%emt 0:05:53]} 14. bxc3 {[%emt 0:01:09]} Qd5 {[%emt 0:00:42]} (14... Qd6 $11) 15. Bxf6 $14 {[%emt 0:00:30]} Rxf6 {[%emt 0:00:08]} 16. fxe4 {[%emt 0:00:08]} Qxe4 {[%emt 0:01:14]} 17. Qd3 {[%emt 0:07:56] Prevents Qe3+.} Qd5 {[%emt 0:02:40]} 18. Rae1 {[%emt 0:06:08]} f4 {[%emt 0:02:05]} ({Much less strong is} 18... Rg6 19. Rf3 $14) 19. Qe4 {[%emt 0:05:05]} ({White should play} 19. a3 $14) 19... Raf8 {[%emt 0:02:11]} 20. Qxd5+ {[%emt 0:13:44]} cxd5 $11 {[%emt 0:00:05][%mdl 4096] Endgame KRR-KRR} 21. Re5 {[%emt 0:00:10]} Rc6 {[%emt 0:03:28]} (21... f3 {keeps more tension.} 22. Rxd5 f2+ 23. Kh1 Rc6) 22. Rxd5 {[%emt 0:01:07]} Rxc3 23. Ra5 {[%emt 0:00:15]} Rxc2 {[%emt 0:03:36]} 24. Rxa7 {[%emt 0:00:05]} h6 {[%emt 0:02:36]} 25. g3 {[%emt 0:04:02]} fxg3 {[%emt 0:02:31]} 26. Rxf8+ {[%emt 0:00:15]} Kxf8 {[%emt 0:00:03]} 27. hxg3 {[%emt 0:00:03] KR-KR} Ke7 {[%emt 0:00:26]} 28. Ra6 {[%emt 0:02:11]} Rc4 {[%emt 0:05:01]} 29. Ra7 {[%emt 0:03:29]} Kd6 {[%emt 0:02:28]} 30. Ra6+ $1 {[%emt 0:00:50]} Kd5 {[%emt 0:02:16]} (30... Rc6 $5 {[%cal Rc6a6]} 31. Ra5 Rc4 32. Ra6+ Kd5 $17) 31. Rg6 {[%emt 0:00:08]} Kxd4 {[%emt 0:01:49]} 32. Rxg7 {[%emt 0:00:04]} c5 {[%emt 0:03:30]} 33. Rh7 {[%emt 0:01:22]} Ra4 {[%emt 0:01:30]} 34. Rxh6 {[%emt 0:00:42] [#] Intending Rh4+ and mate.} c4 {[%emt 0:00:32]} 35. Kf1 {[%emt 0:00:51]} Rxa2 {[%emt 0:01:54]} 36. Ke1 {[%emt 0:01:07]} Rg2 {[%emt 0:01:28] ...Kc3 is the strong threat.} 37. Kd1 $1 {[%emt 0:00:43]} Kc3 {[%emt 0:01:05] ( -> ...Rg1+)} 38. Rb6 $2 {[%emt 0:00:30][%mdl 8192] [#] This costs White the game.} (38. Rg6 $11) 38... Rg1+ {[%emt 0:00:27] Black mates.} 39. Ke2 {[%emt 0:00:05]} Rxg3 {[%emt 0:00:33]} 40. Kd1 {[%emt 0:00:00]} Rg1+ {[%emt 0:00:00]} 41. Ke2 {[%emt 0:01:02]} Kc2 {[%emt 0:01:08]} 42. Rc6 {[%emt 0:00:59]} c3 {[%emt 0:00:20][%cal Bc4c3,Bc3c2][%mdl 32]} 43. Rc8 {[%emt 0:11:32]} Rg7 {[%emt 0:00:50]} 44. Rb8 {[%emt 0:06:35]} Re7+ {[%emt 0:00:06]} 45. Kf2 {[%emt 0:00:19]} Kc1 {[%emt 0:00:08]} 46. Rc8 {[%emt 0:00:21]} c2 {[%emt 0:00:04]} 47. Rb8 {[%emt 0:01:13]} Re5 {[%emt 0:00:29]} 48. Rc8 {[%emt 0:02:56]} Rb5 {[%emt 0:00:22]} 49. Ke2 {[%emt 0:01:23]} Kb1 {[%emt 0:00:15]} 50. Kd2 {[%emt 0:00:07]} Rd5+ {[%emt 0:00:06] Weighted Error Value: White=0.21 (precise) /Black=0.08 (flawless)} 0-1

[Event "Polish Youth 1st League 2022"]
[Site "Lublin"]
[Date "2022.06.25"]
[Round "1.8"]
[White "Bachor, Tomasz"]
[Black "Lysakowski, Kamil"]
[Result "1-0"]
[ECO "B12"]
[WhiteElo "1971"]
[BlackElo "1859"]
[Annotator "NA RC"]
[PlyCount "61"]
[EventDate "2022.06.24"]
[EventType "team-tourn"]
[EventCountry "POL"]
[SourceTitle "playchess.com"]
[Source "ChessBase"]
[SourceQuality "1"]
[TimeControl "40/5400+30:1800+30"]

1. e4 c6 2. d4 d5 3. e5 c5 4. dxc5 e6 5. a3 Qc7 6. Nf3 Nd7 7. Bf4 Bxc5 8. b4 Bf8 9. Bd3 Ne7 10. Qe2 Ng6 11. Bg3 a5 12. b5 Bc5 13. O-O O-O 14. Nbd2 a4 15. Kh1 Bb6 16. c4 d4 17. Ne4 Bc5 18. h4 b6 19. h5 Ne7 20. Nf6+ gxf6 21. exf6 Qd8 $18 22. fxe7 Qxe7 23. Qe4 Nf6 24. Qxa8 Bb7 25. Qxa4 Bxf3 26. gxf3 Nxh5 27. Qd1 Kh8 28. f4 Nxf4 29. Bxf4 Qh4+ 30. Bh2 f5 31. f4 1-0